bitfinex/quotes_SOLUSD_20251117
["timestamp","ask_amount","ask_price","bid_price","bid_amount"]
[1763391579589,9.78882769,140.52,140.45,7.05660433]
[1763391579788,25.17756433,140.5,140.45,7.05660433]
[1763391579982,25.17756433,140.47,140.39,0.71]
[1763391580282,7.05660433,140.46,140.41,7.05660433]
[1763391580677,7.05660433,140.46,140.39,0.71]
[1763391580897,18.12096,140.47,140.39,0.71]
[1763391580898,7.05660433,140.47,140.42,7.05660433]
[1763391581211,0.2,140.46,140.39,7.05660433]
[1763391581711,18.12096,140.45,140.39,7.05660433]
[1763391581877,25.17756433,140.45,140.4,7.05660433]
[1763391582066,18.12096,140.45,140.41,7.05660433]
[1763391582266,7.05660433,140.45,140.41,7.05660433]
[1763391582472,4.5,140.47,140.42,0.71]
[1763391582673,4.5,140.47,140.43,7.05660433]
[1763391582868,4.5,140.47,140.43,12.27517721]
[1763391583072,4.5,140.47,140.43,12.98517721]
[1763391583502,12.27517721,140.45,140.41,12.27517721]
[1763391583673,12.27517721,140.46,140.41,12.98517721]
[1763391583996,34.89613721,140.47,140.42,12.27517721]
[1763391584204,22.62096,140.47,140.42,12.27517721]
[1763391584385,12.27517721,140.46,140.37,9.78882769]
[1763391584587,12.27517721,140.46,140.41,12.27517721]
[1763391584774,12.27517721,140.45,140.4,12.27517721]
[1763391584970,12.27517721,140.44,140.39,12.27517721]
[1763391585194,12.27517721,140.41,140.36,12.98517721]
[1763391585391,12.27517721,140.4,140.36,0.71]
[1763391585591,18.12096,140.42,140.36,12.98517721]
[1763391585808,12.27517721,140.37,140.31,0.71]
[1763391586019,12.27517721,140.37,140.2,33.11839746]
[1763391586020,4.5,140.39,140.32,12.98517721]
[1763391586174,4.5,140.39,140.34,12.27517721]
[1763391586378,4.5,140.39,140.28,9.78882769]
[1763391586379,4.5,140.39,140.33,0.71]
[1763391586574,16.77517721,140.39,140.35,12.27517721]
[1763391586811,4.5,140.39,140.35,12.27517721]
[1763391587106,16.77517721,140.39,140.35,12.98517721]
[1763391587295,16.77517721,140.39,140.32,0.71]
[1763391587603,16.77517721,140.39,140.34,12.27517721]
[1763391587800,16.77517721,140.39,140.34,12.98517721]
[1763391587997,12.27517721,140.37,140.32,12.27517721]
[1763391588199,12.27517721,140.37,140.31,0.71]
[1763391588588,12.27517721,140.34,140.29,0.71]
[1763391588910,12.27517721,140.33,140.28,12.27517721]
[1763391589203,12.27517721,140.33,140.24,9.78882769]
[1763391589385,12.27517721,140.33,140.28,12.27517721]
[1763391589706,16.77517721,140.36,140.31,12.27517721]
[1763391589909,4.5,140.36,140.32,12.27517721]
[1763391590116,4.5,140.36,140.33,12.27517721]
[1763391590292,0.2,140.45,140.35,12.27517721]
[1763391590494,4.5,140.44,140.37,12.27517721]
[1763391590690,12.27517721,140.43,140.38,12.27517721]
[1763391590997,16.77517721,140.44,140.39,12.27517721]
[1763391591201,12.27517721,140.42,140.36,0.71]
[1763391591384,12.27517721,140.42,140.37,12.27517721]
[1763391591805,12.27517721,140.42,140.37,12.98517721]
[1763391591985,12.27517721,140.42,140.38,12.27517721]
[1763391592314,18.12096,140.45,140.38,12.27517721]
[1763391592315,4.5,140.47,140.4,12.27517721]
[1763391592518,12.27517721,140.46,140.39,0.71]
[1763391592720,12.27517721,140.46,140.41,12.27517721]
[1763391593100,4.5,140.47,140.41,12.98517721]
[1763391593421,16.77517721,140.47,140.41,0.71]
[1763391593724,12.27517721,140.46,140.41,12.27517721]
[1763391594424,12.27517721,140.46,140.41,12.98517721]
[1763391594623,12.27517721,140.46,140.41,12.27517721]
[1763391594792,16.77517721,140.47,140.42,12.98517721]
[1763391595214,16.77517721,140.47,140.42,0.71]
[1763391595406,16.77517721,140.47,140.42,12.98517721]
[1763391596102,16.77517721,140.47,140.42,12.27517721]
[1763391596613,12.27517721,140.46,140.42,12.27517721]
[1763391597117,12.27517721,140.46,140.41,12.27517721]
[1763391597295,4.7,140.47,140.41,12.27517721]
[1763391597501,12.27517721,140.46,140.41,12.27517721]
[1763391597810,12.27517721,140.45,140.4,12.27517721]
[1763391598124,12.27517721,140.46,140.41,12.27517721]
[1763391598495,12.27517721,140.46,140.41,12.98517721]
[1763391598690,22.62096,140.47,140.43,12.27517721]
[1763391599430,16.77517721,140.47,140.42,12.27517721]
[1763391599729,16.77517721,140.47,140.36,32.40978769]
[1763391599730,4.5,140.47,140.43,12.27517721]
[1763391600257,4.5,140.47,140.44,0.71]
[1763391600415,4.5,140.47,140.37,9.78882769]
[1763391600416,12.27517721,140.51,140.46,12.27517721]
[1763391600619,0.2,140.51,140.43,0.71]
[1763391600832,4.5,140.53,140.47,12.27517721]
[1763391601026,18.32096,140.52,140.43,0.71]
[1763391601327,2.2,140.59,140.51,12.27517721]
[1763391601328,0.2,140.59,140.51,12.27517721]
[1763391601518,12.27517721,140.56,140.44,0.71204784]
[1763391601731,12.27517721,140.53,140.47,0.71]
[1763391601932,4.5,140.56,140.52,12.27517721]
[1763391602234,0.2,140.59,140.54,12.27517721]
[1763391602421,0.2,140.59,140.48,9.78882769]
[1763391602422,0.4,140.59,140.51,0.71]
[1763391602629,0.2,140.59,140.57,12.27517721]
[1763391602820,0.2,140.59,140.58,12.27517721]
[1763391603043,0.2,140.59,140.53,0.71]
[1763391603352,0.2,140.59,140.54,12.27517721]
[1763391603530,0.2,140.59,140.5,4.5]
[1763391603531,12.27517721,140.58,140.52,0.71]
[1763391603883,18.12096,140.5,140.28,17.82023949]
[1763391604015,18.12096,140.5,140.24,52.70600939]
[1763391604016,12.27517721,140.47,140.32,5.21]
[1763391604215,22.62096,140.5,140.35,18.12096]
[1763391604443,12.27517721,140.49,140.35,18.12096]
[1763391604719,0.2,140.49,140.41,12.27517721]
[1763391604930,4.5,140.5,140.45,12.27517721]
[1763391605146,18.12096,140.51,140.46,12.27517721]
[1763391605325,4.5,140.52,140.5,12.27517721]
[1763391605524,12.27517721,140.57,140.47,5.21]
[1763391605760,0.2,140.59,140.5,12.27517721]
[1763391605927,0.2,140.59,140.57,12.27517721]
[1763391606135,0.2,140.59,140.56,12.27517721]
[1763391606660,0.2,140.59,140.53,23.28096]
[1763391606960,0.2,140.59,140.58,12.27517721]
[1763391607165,0.2,140.59,140.58,12.93517721]
[1763391607463,0.2,140.6,140.58,12.93517721]
[1763391607674,0.2,140.6,140.59,12.27517721]
[1763391607838,0.2,140.6,140.59,12.93517721]
[1763391608178,0.2,140.62,140.59,12.93517721]
[1763391608377,0.2,140.64,140.61,12.27517721]
[1763391608541,0.2,140.64,140.6,0.66]
[1763391608869,0.2,140.64,140.63,12.27517721]
[1763391609248,12.47517721,140.7,140.63,12.93517721]
[1763391609249,0.2,140.7,140.63,12.93517721]
[1763391609439,0.2,140.7,140.69,12.27517721]
[1763391609860,0.2,140.73,140.69,34.99918211]
[1763391610060,0.2,140.73,140.72,12.27517721]
[1763391610341,0.2,140.73,140.7,12.93517721]
[1763391610342,0.2,140.73,140.7,0.66]
[1763391610572,0.2,140.73,140.7,12.27517721]
[1763391610868,0.89,140.73,140.65,0.66]
[1763391611079,0.89,140.73,140.63,4.5]
[1763391611080,18.12096,140.68,140.61,0.66]
[1763391611251,0.89,140.73,140.65,12.27517721]
[1763391611252,18.12096,140.7,140.65,12.27517721]
[1763391611443,18.12096,140.7,140.61,0.66]
[1763391611778,31.08613721,140.7,140.65,12.27517721]
[1763391611957,18.81096,140.7,140.65,12.27517721]
[1763391612164,12.27517721,140.66,140.57,0.66]
[1763391612474,12.27517721,140.65,140.59,12.27517721]
[1763391612638,0.69,140.65,140.57,0.66]
[1763391612842,12.96517721,140.64,140.58,12.27517721]
[1763391613039,22.62096,140.66,140.56,0.66]
[1763391613243,30.39613721,140.7,140.65,12.27517721]
[1763391613469,18.12096,140.7,140.59,9.78882769]
[1763391613771,30.39613721,140.7,140.65,12.27517721]
[1763391613949,0.2,140.73,140.67,12.27517721]
[1763391614159,0.2,140.73,140.71,12.27517721]
[1763391614364,0.2,140.73,140.72,12.27517721]
[1763391614561,0.2,140.73,140.72,12.93517721]
[1763391614968,0.2,140.73,140.72,12.27517721]
[1763391615158,0.2,140.73,140.69,18.78096]
[1763391615358,0.2,140.73,140.72,12.27517721]
[1763391615752,0.2,140.73,140.72,12.93517721]
[1763391616178,0.67,140.85,140.73,9.78882769]
[1763391616347,0.2,140.92,140.73,10.50882769]
[1763391616348,12.94517721,140.83,140.73,10.50882769]
[1763391616546,12.94517721,140.83,140.74,0.72]
[1763391616752,12.27517721,140.76,140.67,0.72]
[1763391616978,12.27517721,140.76,140.69,12.27517721]
[1763391616979,18.12096,140.76,140.69,12.27517721]
[1763391617150,18.12096,140.76,140.71,12.27517721]
[1763391617354,18.99096,140.81,140.75,12.27517721]
[1763391617548,18.12096,140.8,140.76,12.27517721]
[1763391617751,18.79096,140.8,140.7,4.5]
[1763391617954,30.39613721,140.76,140.65,0.72]
[1763391618157,9.78882769,140.75,140.69,12.27517721]
[1763391618350,18.12096,140.73,140.68,12.27517721]
[1763391618547,18.12096,140.73,140.61,9.78882769]
[1763391618751,22.0640049,140.71,140.65,12.27517721]
[1763391618987,18.12096,140.68,140.58,0.72]
[1763391619156,18.12096,140.68,140.64,12.27517721]
[1763391619480,18.12096,140.68,140.61,0.72]
[1763391619481,18.12096,140.68,140.65,12.27517721]
[1763391619650,18.12096,140.68,140.61,0.72]
[1763391620064,18.79096,140.68,140.64,12.27517721]
[1763391620263,18.12096,140.68,140.66,12.27517721]
[1763391620465,4.5,140.7,140.61,9.78882769]
[1763391620667,5.17,140.7,140.61,10.50882769]
[1763391620854,5.17,140.7,140.65,12.27517721]
[1763391621060,18.12096,140.67,140.64,12.27517721]
[1763391621247,18.12096,140.67,140.5,12.27517721]
[1763391621248,4.5,140.7,140.65,12.27517721]
[1763391621455,18.79096,140.69,140.66,12.27517721]
[1763391621761,18.12096,140.69,140.67,12.27517721]
[1763391621963,18.79096,140.69,140.64,12.27517721]
[1763391622168,12.94517721,140.68,140.63,12.27517721]
[1763391622366,30.39613721,140.67,140.62,12.27517721]
[1763391622707,18.79096,140.67,140.63,12.27517721]
[1763391622883,12.27517721,140.69,140.6,27.90978769]
[1763391623091,7.10521876,140.75,140.6,27.90978769]
[1763391623092,0.67,140.76,140.68,12.27517721]
[1763391623279,14.28882769,140.75,140.68,12.27517721]
[1763391623591,14.28882769,140.75,140.61,0.72]
[1763391623592,12.27517721,140.7,140.61,9.78882769]
[1763391623764,12.27517721,140.7,140.64,12.27517721]
[1763391623971,12.27517721,140.68,140.63,12.27517721]
[1763391624273,12.27517721,140.67,140.62,12.27517721]
[1763391624793,0.67,140.67,140.63,12.27517721]
[1763391625006,12.27517721,140.67,140.62,12.27517721]
[1763391625167,30.39613721,140.68,140.63,12.27517721]
[1763391625368,30.39613721,140.68,140.57,0.72]
[1763391625369,0.67,140.67,140.61,12.27517721]
[1763391625569,18.12096,140.68,140.64,12.27517721]
[1763391625775,12.94517721,140.67,140.59,18.12096]
[1763391625992,0.67,140.67,140.63,12.27517721]
[1763391626502,12.94517721,140.67,140.62,12.27517721]
[1763391627009,0.67,140.66,140.57,9.78882769]
[1763391627310,12.27517721,140.62,140.57,12.27517721]
[1763391627470,12.27517721,140.6,140.55,12.27517721]
[1763391627670,12.27517721,140.58,140.53,12.27517721]
[1763391628094,12.94517721,140.57,140.51,12.27517721]
[1763391628403,22.60096,140.59,140.55,12.27517721]
[1763391628597,18.79096,140.58,140.5,12.27517721]
[1763391628769,12.27517721,140.57,140.48,4.48]
[1763391628971,12.27517721,140.54,140.49,12.27517721]
[1763391629196,22.60096,140.53,140.48,12.27517721]
[1763391629393,4.48,140.53,140.52,12.27517721]
[1763391629601,4.48,140.53,140.5,12.27517721]
[1763391629770,4.48,140.53,140.49,12.27517721]
[1763391629973,12.94517721,140.52,140.43,0.1]
[1763391630201,0.67,140.52,140.48,12.27517721]
[1763391630403,5.15,140.56,140.5,12.27517721]
[1763391630623,12.27517721,140.53,140.45,4.48]
[1763391630926,12.27517721,140.53,140.48,12.27517721]
[1763391631101,12.27517721,140.54,140.49,12.27517721]
[1763391631304,0.67,140.54,140.49,12.27517721]
[1763391631513,0.67,140.53,140.49,12.27517721]
[1763391631818,12.94517721,140.54,140.49,12.27517721]
[1763391632021,12.94517721,140.53,140.49,12.27517721]
[1763391632325,18.12096,140.55,140.49,12.27517721]
[1763391632490,14.26882769,140.56,140.45,12.27517721]
[1763391632491,12.27517721,140.51,140.45,12.27517721]
[1763391632821,22.62096,140.51,140.47,12.27517721]
[1763391633185,22.62096,140.51,140.43,18.94096]
[1763391633186,0.67,140.5,140.43,22.72096]
[1763391633390,4.5,140.51,140.48,12.27517721]
[1763391633793,22.62096,140.51,140.49,12.27517721]
[1763391633992,22.62096,140.51,140.48,12.27517721]
[1763391634193,4.5,140.55,140.5,12.27517721]
[1763391634411,4.5,140.55,140.44,18.84096]
[1763391634412,18.79096,140.54,140.44,0.72]
[1763391634608,30.39613721,140.53,140.48,12.27517721]
[1763391634826,18.12096,140.53,140.5,12.27517721]
[1763391635003,18.12096,140.53,140.44,10.50882769]
[1763391635004,0.67,140.52,140.44,18.12096]
[1763391635331,18.12096,140.53,140.51,12.27517721]
[1763391635512,0.67,140.54,140.5,12.27517721]
[1763391635713,4.5,140.55,140.53,12.27517721]
[1763391635927,4.5,140.55,140.54,12.27517721]
[1763391636298,0.68,140.55,140.46,0.68]
[1763391636619,0.68,140.55,140.47,18.80096]
[1763391636830,0.68,140.55,140.51,12.27517721]
[1763391637026,0.68,140.55,140.52,12.27517721]
[1763391637346,0.68,140.55,140.48,18.12096]
[1763391637347,0.68,140.57,140.53,12.27517721]
[1763391637628,9.78882769,140.6,140.45,23.30096]
[1763391637629,12.27517721,140.55,140.45,23.30096]
[1763391637837,16.77517721,140.55,140.51,12.27517721]
[1763391637999,18.12096,140.52,140.48,12.27517721]
[1763391638204,30.39613721,140.52,140.48,12.27517721]
[1763391638503,4.5,140.55,140.45,18.12096]
[1763391638705,4.5,140.55,140.53,12.27517721]
[1763391638925,4.5,140.61,140.54,12.27517721]
[1763391639207,0.68,140.6,140.57,12.27517721]
[1763391640218,0.68,140.6,140.53,0.68]
[1763391640219,18.12096,140.59,140.55,12.27517721]
[1763391640627,0.68,140.58,140.55,12.27517721]
[1763391640839,18.12096,140.62,140.56,12.27517721]
[1763391641051,0.68,140.6,140.57,12.27517721]
[1763391641346,22.7440049,140.6,140.5,18.80096]
[1763391641525,18.12096,140.57,140.54,12.27517721]
[1763391641705,18.12096,140.57,140.55,12.27517721]
[1763391641909,0.68,140.56,140.53,12.27517721]
[1763391642343,12.27517721,140.55,140.44,0.68]
[1763391642551,12.95517721,140.54,140.49,12.27517721]
[1763391642833,0.68,140.54,140.51,12.27517721]
[1763391643039,18.12096,140.55,140.52,12.27517721]
[1763391643215,17.45517721,140.6,140.54,12.27517721]
[1763391643531,4.5,140.62,140.58,12.27517721]
[1763391643742,12.95517721,140.61,140.53,0.68]
[1763391643908,12.95517721,140.61,140.58,12.27517721]
[1763391643909,0.68,140.61,140.58,12.27517721]
[1763391644333,12.95517721,140.61,140.56,12.27517721]
[1763391644636,12.95517721,140.61,140.44,0.71204784]
[1763391644637,12.27517721,140.57,140.47,0.68]
[1763391644825,11.54136932,140.56,140.51,7.04136932]
[1763391645031,7.04136932,140.54,140.43,0.78]
[1763391645251,7.04136932,140.51,140.43,0.1]
[1763391645557,11.54136932,140.5,140.45,7.04136932]
[1763391645710,4.5,140.5,140.46,7.04136932]
[1763391645914,0.68,140.49,140.45,7.04136932]
[1763391646341,0.68,140.49,140.46,7.04136932]
[1763391646516,7.04136932,140.56,140.46,7.04136932]
[1763391646517,0.68,140.57,140.48,14.08273864]
[1763391646857,0.68,140.63,140.56,7.04136932]
[1763391647028,0.68,140.63,140.49,23.28096]
[1763391647029,4.5,140.62,140.53,9.78882769]
[1763391647208,0.68,140.68,140.61,7.04136932]
[1763391647410,7.04136932,140.71,140.66,7.04136932]
[1763391647643,5.18,140.7,140.62,7.04136932]
[1763391647949,5.18,140.7,140.54,0.68]
[1763391647950,7.04136932,140.63,140.54,0.68]
[1763391648146,4.5,140.62,140.57,7.04136932]
[1763391648441,4.5,140.62,140.61,7.04136932]
[1763391648647,12.22136932,140.62,140.54,0.68]
[1763391648824,12.22136932,140.62,140.5,0.68]
[1763391648825,18.12096,140.59,140.5,0.68]
[1763391649022,18.12096,140.59,140.55,7.04136932]
[1763391649224,0.68,140.61,140.48,0.68]
[1763391649225,7.04136932,140.56,140.48,0.68]
[1763391649408,4.48,140.55,140.51,7.04136932]
[1763391649612,4.48,140.55,140.44,4.48]
[1763391649613,4.48,140.55,140.52,7.04136932]
[1763391649811,12.20136932,140.55,140.5,7.04136932]
[1763391650008,7.72136932,140.54,140.5,7.04136932]
[1763391650547,18.12096,140.54,140.51,7.04136932]
[1763391650708,0.68,140.53,140.47,18.12096]
[1763391650913,7.72136932,140.53,140.48,7.04136932]
[1763391651143,18.12096,140.54,140.49,7.04136932]
[1763391651345,18.12096,140.54,140.5,7.04136932]
[1763391651645,18.12096,140.54,140.52,7.04136932]
[1763391651851,4.48,140.55,140.52,7.04136932]
[1763391652147,0.68,140.55,140.48,25.84232932]
[1763391652348,0.68,140.55,140.51,7.04136932]
[1763391652711,0.68,140.55,140.52,7.04136932]
[1763391653015,22.60096,140.59,140.54,7.04136932]
[1763391653016,5.16,140.59,140.54,7.04136932]
[1763391653216,0.68,140.64,140.58,7.04136932]
[1763391653424,7.04136932,140.72,140.59,7.04136932]
[1763391653425,30.32232932,140.63,140.59,7.04136932]
[1763391653618,5.16,140.63,140.59,7.04136932]
[1763391653852,5.16,140.63,140.6,7.04136932]
[1763391654160,0.68,140.62,140.58,7.04136932]
[1763391654312,16.83019701,140.61,140.56,7.04136932]
[1763391654516,7.04136932,140.59,140.54,7.04136932]
[1763391654814,5.16,140.58,140.54,7.04136932]
[1763391655010,23.28096,140.58,140.54,7.04136932]
[1763391655251,0.68,140.57,140.54,7.04136932]
[1763391655617,0.68,140.57,140.48,7.04136932]
[1763391655922,0.68,140.57,140.52,7.04136932]
[1763391656124,0.68,140.57,140.53,7.04136932]
[1763391656330,0.68,140.64,140.56,7.04136932]
[1763391656515,0.68,140.63,140.59,7.04136932]
[1763391657312,7.04136932,140.62,140.57,7.04136932]
[1763391657516,18.12096,140.59,140.56,7.04136932]
[1763391657744,16.83019701,140.61,140.56,7.04136932]
[1763391657745,4.48,140.6,140.56,7.04136932]
[1763391657943,5.16,140.6,140.56,7.04136932]
[1763391658157,0.68,140.59,140.55,7.04136932]
[1763391658518,18.12096,140.57,140.54,7.04136932]
[1763391658751,7.04136932,140.56,140.51,7.04136932]
[1763391658916,4.48,140.55,140.51,7.04136932]
[1763391659119,4.48,140.55,140.52,7.04136932]
[1763391659325,4.48,140.55,140.48,7.72136932]
[1763391659326,4.48,140.55,140.54,7.04136932]
[1763391659548,0.68,140.63,140.54,7.04136932]
[1763391659850,0.68,140.63,140.5,9.78882769]
[1763391659851,16.83019701,140.62,140.57,7.04136932]
[1763391660217,22.60096,140.63,140.58,7.04136932]
[1763391660530,0.68,140.66,140.62,7.04136932]
[1763391660734,0.68,140.66,140.56,25.16232932]
[1763391660940,7.04136932,140.57,140.48,7.72136932]
[1763391661157,18.12096,140.55,140.43,9.88882769]
[1763391661483,10.46882769,140.54,140.44,0.68]
[1763391661818,5.16,140.53,140.44,0.68]
[1763391662214,0.68,140.52,140.48,7.04136932]
[1763391662454,7.04136932,140.51,140.43,0.78]
[1763391662751,0.68,140.52,140.47,7.04136932]
[1763391662959,18.12096,140.52,140.49,7.04136932]
[1763391663125,18.12096,140.51,140.49,7.04136932]
[1763391663325,25.16232932,140.5,140.43,0.1]
[1763391663562,5.16,140.53,140.48,7.04136932]
[1763391663719,10.46882769,140.52,140.45,7.04136932]
[1763391663919,7.04136932,140.51,140.46,7.04136932]
[1763391664223,0.68,140.58,140.5,7.04136932]
[1763391664423,4.75755467,140.69,140.57,7.04136932]
[1763391664656,0.68,140.64,140.6,7.04136932]
[1763391664854,0.68,140.64,140.61,7.04136932]
[1763391665148,4.48,140.68,140.63,7.04136932]
[1763391665350,0.68,140.67,140.59,18.12096]
[1763391665553,18.12096,140.62,140.54,0.68]
[1763391665756,7.04136932,140.61,140.57,7.04136932]
[1763391666055,0.68,140.62,140.58,7.04136932]
[1763391666219,4.48,140.63,140.56,25.16232932]
[1763391666420,4.48,140.63,140.62,7.04136932]
[1763391666734,0.72,140.62,140.52,0.7]
[1763391666937,18.12096,140.6,140.52,0.7]
[1763391667139,18.12096,140.6,140.48,4.48]
[1763391667445,18.12096,140.58,140.49,10.48882769]
[1763391667640,18.12096,140.58,140.52,10.65342922]
[1763391667870,4.48,140.6,140.56,10.65342922]
[1763391668079,28.77438922,140.57,140.48,4.48]
[1763391668293,28.77438922,140.57,140.52,10.65342922]
[1763391668586,11.37342922,140.56,140.5,10.65342922]
[1763391668789,4.48,140.55,140.43,0.1]
[1763391668976,10.65342922,140.53,140.48,10.65342922]
[1763391669157,28.77438922,140.52,140.47,10.65342922]
[1763391669352,18.12096,140.52,140.45,18.12096]
[1763391669602,18.12096,140.52,140.48,10.65342922]
[1763391669766,18.84096,140.58,140.51,10.65342922]
[1763391669968,2.0,140.66,140.55,10.65342922]
[1763391669969,0.72,140.61,140.55,10.65342922]
[1763391670296,10.65342922,140.57,140.48,0.7]
[1763391670468,9.78882769,140.59,140.52,10.65342922]
[1763391670469,4.48,140.58,140.52,10.65342922]
[1763391670655,28.77438922,140.56,140.51,10.65342922]
[1763391670989,9.78882769,140.55,140.49,10.65342922]
[1763391671159,10.65342922,140.54,140.49,10.65342922]
[1763391671362,4.48,140.58,140.43,9.88882769]
[1763391671363,0.72,140.58,140.52,10.65342922]
[1763391671654,0.72,140.58,140.5,0.7]
[1763391671655,5.2,140.58,140.54,10.65342922]
[1763391671991,0.72,140.6,140.52,18.82096]
[1763391672287,0.72,140.6,140.56,10.65342922]
[1763391672461,28.77438922,140.58,140.48,23.30096]
[1763391672660,4.48,140.57,140.51,10.65342922]
[1763391672987,4.48,140.57,140.55,10.65342922]
[1763391673169,0.72,140.6,140.56,10.65342922]
[1763391673367,11.37342922,140.6,140.55,10.65342922]
[1763391673552,18.12096,140.53,140.43,0.8]
[1763391673757,28.77438922,140.53,140.48,10.65342922]
[1763391674022,14.26882769,140.55,140.43,0.1]
[1763391674023,10.65342922,140.51,140.43,0.1]
[1763391674287,18.84096,140.52,140.47,10.65342922]
[1763391674464,0.72,140.51,140.46,10.65342922]
[1763391674675,11.37342922,140.51,140.46,10.65342922]
[1763391674860,0.72,140.51,140.46,10.65342922]
[1763391675185,0.72,140.5,140.46,10.65342922]
[1763391675422,18.12096,140.49,140.44,10.65342922]
[1763391675707,5.83024588,140.59,140.44,10.65342922]
[1763391675708,0.72,140.53,140.48,10.65342922]
[1763391675912,15.13342922,140.55,140.49,10.65342922]
[1763391676119,4.48,140.55,140.48,0.67]
[1763391676405,18.12096,140.54,140.52,10.65342922]
[1763391676613,4.48,140.55,140.52,10.65342922]
[1763391676782,4.48,140.55,140.48,18.12096]
[1763391676983,11.31342922,140.58,140.49,0.67]
[1763391677180,4.48,140.59,140.55,10.65342922]
[1763391677507,0.66,140.65,140.58,10.65342922]
[1763391677809,0.66,140.72,140.64,10.65342922]
[1763391678016,0.66,140.72,140.68,10.65342922]
[1763391678189,0.66,140.72,140.63,0.67]
[1763391678190,18.12096,140.67,140.63,10.65342922]
[1763391678503,10.65342922,140.69,140.64,10.65342922]
[1763391678504,0.66,140.66,140.64,10.65342922]
[1763391678802,9.78882769,140.65,140.51,0.71169311]
[1763391679033,9.78882769,140.7,140.51,0.71169311]
[1763391679034,28.77438922,140.62,140.56,10.65342922]
[1763391679208,10.65342922,140.61,140.56,10.65342922]
[1763391679508,0.66,140.61,140.56,10.65342922]
[1763391679710,33.25438922,140.62,140.53,0.67]
[1763391679923,4.48,140.62,140.58,10.65342922]
[1763391680096,4.48,140.62,140.54,0.67]
[1763391680288,18.78096,140.63,140.59,10.65342922]
[1763391680289,18.12096,140.63,140.59,10.65342922]
[1763391680501,18.12096,140.63,140.58,10.65342922]
[1763391680679,18.12096,140.63,140.54,0.67]
[1763391680680,18.78096,140.63,140.57,10.65342922]
[1763391680881,10.65342922,140.61,140.56,10.65342922]
[1763391681097,10.65342922,140.61,140.52,18.12096]
[1763391681098,11.31342922,140.62,140.57,10.65342922]
[1763391681305,15.13342922,140.66,140.61,10.65342922]
[1763391681527,0.66,140.64,140.59,10.65342922]
[1763391681683,0.66,140.64,140.53,14.93882769]
[1763391681684,18.12096,140.62,140.58,10.65342922]
[1763391682015,11.31342922,140.64,140.58,10.65342922]
[1763391682183,15.13342922,140.66,140.61,10.65342922]
[1763391682388,18.12096,140.65,140.62,10.65342922]
[1763391682713,10.65342922,140.7,140.64,10.65342922]
[1763391682917,18.12096,140.67,140.63,10.65342922]
[1763391683118,10.65342922,140.69,140.58,0.67]
[1763391683119,10.65342922,140.65,140.58,0.67]
[1763391683328,18.12096,140.61,140.46,0.71194646]
[1763391683536,10.65342922,140.57,140.48,0.67]
[1763391683691,28.77438922,140.55,140.49,10.65342922]
[1763391684037,0.66,140.56,140.43,0.1]
[1763391684038,10.65342922,140.51,140.43,0.1]
[1763391684191,10.65342922,140.49,140.44,10.65342922]
[1763391684390,18.78096,140.5,140.43,0.1]
[1763391684391,18.12096,140.5,140.45,10.65342922]
[1763391684590,18.12096,140.5,140.43,0.77]
[1763391684591,28.77438922,140.47,140.43,0.1]
[1763391684788,10.65342922,140.44,140.43,0.1]
[1763391684992,20.44225691,140.44,140.43,0.1]
[1763391685188,20.44225691,140.44,140.35,0.77]
[1763391685189,18.12096,140.43,140.39,10.65342922]
[1763391685420,28.77438922,140.42,140.36,10.65342922]
[1763391685587,18.12096,140.42,140.37,10.65342922]
[1763391685788,18.12096,140.42,140.38,0.67]
[1763391686022,18.12096,140.42,140.35,0.1]
[1763391686023,18.78096,140.43,140.37,10.65342922]
[1763391686236,18.78096,140.43,140.35,0.1]
[1763391686237,18.12096,140.41,140.35,0.1]
[1763391689214,0.66,140.46,140.34,10.65342922]
[1763391689409,10.65342922,140.44,140.39,10.65342922]
[1763391689598,4.48,140.45,140.32,18.79096]
[1763391689599,10.65342922,140.42,140.34,18.12096]
[1763391689793,18.12096,140.39,140.35,10.65342922]